[Event "Titled Tuesday Blitz February 28 Early 2023"]
[White "Sarana, Alexey"]
[Black "Drygalov, Sergey"]
[WhiteFideId "24133795"]
[BlackFideId "24171743"]
[WhiteElo "2717"]
[BlackElo "2533"]
[Result "1-0"]
[Round "09"]
[TimeControl "180+2"]
[Date "2023.02.28"]
[WhiteClock "0:00:26"]
[BlackClock "0:00:10"]

1. c4 {[%clk 0:02:58]}  c6 {[%clk 0:02:59]} 2. Nf3 {[%clk 0:02:58]}  d5 {[%clk 0:02:59]} 3. d4 {[%clk 0:02:59]}  Nf6 {[%clk 0:02:59]} 4. Nc3 {[%clk 0:03:00]}  a6 {[%clk 0:02:58]} 5. e3 {[%clk 0:02:59]}  b5 {[%clk 0:02:55]} 6. b3 {[%clk 0:02:59]}  e6 {[%clk 0:02:55]} 7. Bd3 {[%clk 0:02:57]}  Bb4 {[%clk 0:02:51]} 8. Bd2 {[%clk 0:02:58]}  O-O {[%clk 0:02:45]} 9. O-O {[%clk 0:02:57]}  Re8 {[%clk 0:02:15]} 10. Qc2 {[%clk 0:02:37]}  bxc4 {[%clk 0:01:39]} 11. bxc4 {[%clk 0:02:37]}  a5 {[%clk 0:01:40]} 12. cxd5 {[%clk 0:01:49]}  cxd5 {[%clk 0:01:30]} 13. Nb5 {[%clk 0:01:49]}  Na6 {[%clk 0:01:23]} 14. Ne5 {[%clk 0:01:45]}  Bd7 {[%clk 0:01:21]} 15. a3 {[%clk 0:01:35]}  Bxd2 {[%clk 0:01:10]} 16. Qxd2 {[%clk 0:01:34]}  Ne4 {[%clk 0:01:10]} 17. Bxe4 {[%clk 0:01:27]}  Bxb5 {[%clk 0:01:03]} 18. Rfb1 {[%clk 0:01:27]}  Nc7 {[%clk 0:00:42]} 19. a4 {[%clk 0:00:58]}  Bxa4 {[%clk 0:00:20]} 20. Bxh7+ {[%clk 0:00:57]}  Kxh7 {[%clk 0:00:21]} 21. Rxa4 {[%clk 0:00:57]}  Kg8 {[%clk 0:00:18]} 22. Rxa5 {[%clk 0:00:55]}  f6 {[%clk 0:00:15]} 23. Nd3 {[%clk 0:00:52]}  e5 {[%clk 0:00:11]} 24. dxe5 {[%clk 0:00:48]}  fxe5 {[%clk 0:00:11]} 25. h3 {[%clk 0:00:49]}  Rxa5 {[%clk 0:00:07]} 26. Qxa5 {[%clk 0:00:49]}  d4 {[%clk 0:00:07]} 27. exd4 {[%clk 0:00:48]}  Qxd4 {[%clk 0:00:06]} 28. Ne1 {[%clk 0:00:25]}  Ne6 {[%clk 0:00:06]} 29. Nf3 {[%clk 0:00:23]}  Qd3 {[%clk 0:00:07]} 30. Re1 {[%clk 0:00:20]}  e4 {[%clk 0:00:07]} 31. Qa4 {[%clk 0:00:19]}  Nc7 {[%clk 0:00:06]} 32. Qc6 {[%clk 0:00:14]}  exf3 {[%clk 0:00:05]} 33. Rxe8+ {[%clk 0:00:14]}  Nxe8 {[%clk 0:00:05]} 34. Qxe8+ {[%clk 0:00:15]}  Kh7 {[%clk 0:00:05]} 35. Qh5+ {[%clk 0:00:16]}  Kg8 {[%clk 0:00:06]} 36. Qxf3 {[%clk 0:00:16]}  Qb1+ {[%clk 0:00:06]} 37. Kh2 {[%clk 0:00:16]}  Qb8+ {[%clk 0:00:07]} 38. Qg3 {[%clk 0:00:16]}  Qb2 {[%clk 0:00:07]} 39. Qe3 {[%clk 0:00:17]}  Qb8+ {[%clk 0:00:07]} 40. g3 {[%clk 0:00:17]}  Qb4 {[%clk 0:00:07]} 41. h4 {[%clk 0:00:18]}  Qc4 {[%clk 0:00:08]} 42. Kh3 {[%clk 0:00:18]}  Qc8+ {[%clk 0:00:08]} 43. Kg2 {[%clk 0:00:19]}  Qc6+ {[%clk 0:00:08]} 44. Qf3 {[%clk 0:00:19]}  Qc4 {[%clk 0:00:09]} 45. Qf5 {[%clk 0:00:19]}  Qc6+ {[%clk 0:00:09]} 46. Kh3 {[%clk 0:00:20]}  Qh1+ {[%clk 0:00:09]} 47. Kg4 {[%clk 0:00:20]}  Qd1+ {[%clk 0:00:10]} 48. f3 {[%clk 0:00:21]}  Qd4+ {[%clk 0:00:10]} 49. Kh3 {[%clk 0:00:19]}  Qd1 {[%clk 0:00:10]} 50. h5 {[%clk 0:00:20]}  Qd4 {[%clk 0:00:09]} 51. Qe6+ {[%clk 0:00:19]}  Kh8 {[%clk 0:00:08]} 52. Qe8+ {[%clk 0:00:19]}  Kh7 {[%clk 0:00:08]} 53. Qe4+ {[%clk 0:00:20]}  Qxe4 {[%clk 0:00:02]} 54. fxe4 {[%clk 0:00:21]}  Kh6 {[%clk 0:00:02]} 55. Kg4 {[%clk 0:00:20]}  g6 {[%clk 0:00:03]} 56. hxg6 {[%clk 0:00:20]}  Kxg6 {[%clk 0:00:04]} 57. e5 {[%clk 0:00:21]}  Kf7 {[%clk 0:00:05]} 58. Kf5 {[%clk 0:00:21]}  Ke7 {[%clk 0:00:06]} 59. g4 {[%clk 0:00:22]}  Kf7 {[%clk 0:00:06]} 60. g5 {[%clk 0:00:23]}  Kf8 {[%clk 0:00:06]} 61. g6 {[%clk 0:00:24]}  Ke7 {[%clk 0:00:07]} 62. Kg5 {[%clk 0:00:24]}  Kf8 {[%clk 0:00:07]} 63. Kf6 {[%clk 0:00:24]}  Kg8 {[%clk 0:00:08]} 64. g7 {[%clk 0:00:24]}  Kh7 {[%clk 0:00:09]} 65. Kf7 {[%clk 0:00:25]}  Kh6 {[%clk 0:00:10]} 66. g8=Q {[%clk 0:00:26]} 1-0


[Site "https://www.chess.com"]

[Event "Titled Tuesday Blitz February 28 Early 2023"]
[White "Drygalov, Andrey"]
[Black "Adhiban, B."]
[WhiteFideId "24171735"]
[BlackFideId "5018471"]
[WhiteElo "2471"]
[BlackElo "2587"]
[Result "0-1"]
[Round "09"]
[TimeControl "180+2"]
[Date "2023.02.28"]
[WhiteClock "0:00:17"]
[BlackClock "0:01:22"]

1. e4 {[%clk 0:02:50]}  c5 {[%clk 0:02:59]} 2. Nf3 {[%clk 0:02:49]}  Nc6 {[%clk 0:02:59]} 3. Bb5 {[%clk 0:02:48]}  d6 {[%clk 0:03:00]} 4. O-O {[%clk 0:02:46]}  Bd7 {[%clk 0:03:00]} 5. Re1 {[%clk 0:02:47]}  a6 {[%clk 0:03:01]} 6. Bf1 {[%clk 0:02:46]}  Bg4 {[%clk 0:03:00]} 7. h3 {[%clk 0:02:46]}  Bxf3 {[%clk 0:02:59]} 8. Qxf3 {[%clk 0:02:46]}  e6 {[%clk 0:03:00]} 9. c3 {[%clk 0:02:46]}  Be7 {[%clk 0:02:59]} 10. d3 {[%clk 0:02:44]}  Nf6 {[%clk 0:02:59]} 11. Be3 {[%clk 0:02:44]}  d5 {[%clk 0:03:00]} 12. Nd2 {[%clk 0:02:43]}  O-O {[%clk 0:02:56]} 13. Qd1 {[%clk 0:02:40]}  d4 {[%clk 0:02:52]} 14. Bf4 {[%clk 0:02:33]}  e5 {[%clk 0:02:52]} 15. Bg5 {[%clk 0:02:33]}  h6 {[%clk 0:02:49]} 16. Bh4 {[%clk 0:02:30]}  Nd7 {[%clk 0:02:43]} 17. Bg3 {[%clk 0:02:29]}  b5 {[%clk 0:02:43]} 18. c4 {[%clk 0:02:20]}  Nb6 {[%clk 0:02:40]} 19. b3 {[%clk 0:02:19]}  Bg5 {[%clk 0:02:37]} 20. Nf3 {[%clk 0:02:19]}  Bf6 {[%clk 0:02:36]} 21. Nh2 {[%clk 0:02:19]}  g6 {[%clk 0:02:34]} 22. cxb5 {[%clk 0:01:53]}  axb5 {[%clk 0:02:35]} 23. Qc1 {[%clk 0:01:54]}  c4 {[%clk 0:02:13]} 24. dxc4 {[%clk 0:01:46]}  bxc4 {[%clk 0:02:13]} 25. Bxc4 {[%clk 0:01:42]}  Rc8 {[%clk 0:02:13]} 26. Ng4 {[%clk 0:01:37]}  Bg5 {[%clk 0:02:13]} 27. Qd1 {[%clk 0:01:36]}  Nxc4 {[%clk 0:02:10]} 28. bxc4 {[%clk 0:01:36]}  Qe7 {[%clk 0:02:00]} 29. Rb1 {[%clk 0:01:12]}  h5 {[%clk 0:01:59]} 30. Nh2 {[%clk 0:01:11]}  h4 {[%clk 0:01:58]} 31. Bxe5 {[%clk 0:00:50]}  Nxe5 {[%clk 0:01:55]} 32. Qxd4 {[%clk 0:00:50]}  Rxc4 {[%clk 0:01:54]} 33. Qb6 {[%clk 0:00:49]}  Bf4 {[%clk 0:01:52]} 34. Nf1 {[%clk 0:00:49]}  Rc2 {[%clk 0:01:49]} 35. Qb3 {[%clk 0:00:47]}  Rfc8 {[%clk 0:01:48]} 36. a4 {[%clk 0:00:44]}  Qc5 {[%clk 0:01:48]} 37. Ne3 {[%clk 0:00:43]}  Rc3 {[%clk 0:01:49]} 38. Qd5 {[%clk 0:00:31]}  Bxe3 {[%clk 0:01:48]} 39. fxe3 {[%clk 0:00:32]}  Rxe3 {[%clk 0:01:47]} 40. Qxc5 {[%clk 0:00:32]}  Rxe1+ {[%clk 0:01:47]} 41. Rxe1 {[%clk 0:00:33]}  Rxc5 {[%clk 0:01:47]} 42. Ra1 {[%clk 0:00:34]}  Ra5 {[%clk 0:01:45]} 43. Kf2 {[%clk 0:00:34]}  Nd3+ {[%clk 0:01:34]} 44. Kf3 {[%clk 0:00:25]}  Nc5 {[%clk 0:01:33]} 45. Rc1 {[%clk 0:00:25]}  Nxa4 {[%clk 0:01:29]} 46. Ra1 {[%clk 0:00:25]}  Kg7 {[%clk 0:01:28]} 47. Kg4 {[%clk 0:00:25]}  g5 {[%clk 0:01:28]} 48. e5 {[%clk 0:00:25]}  Kg6 {[%clk 0:01:28]} 49. g3 {[%clk 0:00:12]}  hxg3 {[%clk 0:01:26]} 50. Kxg3 {[%clk 0:00:13]}  Ra6 {[%clk 0:01:25]} 51. h4 {[%clk 0:00:12]}  gxh4+ {[%clk 0:01:25]} 52. Kxh4 {[%clk 0:00:12]}  Nc5 {[%clk 0:01:23]} 53. Rf1 {[%clk 0:00:12]}  Ra4+ {[%clk 0:01:20]} 54. Kh3 {[%clk 0:00:12]}  Re4 {[%clk 0:01:20]} 55. Rf6+ {[%clk 0:00:12]}  Kg7 {[%clk 0:01:20]} 56. Rf5 {[%clk 0:00:12]}  Nd7 {[%clk 0:01:20]} 57. Rg5+ {[%clk 0:00:13]}  Kf8 {[%clk 0:01:20]} 58. e6 {[%clk 0:00:14]}  Rxe6 {[%clk 0:01:19]} 59. Kg3 {[%clk 0:00:15]}  Rg6 {[%clk 0:01:19]} 60. Kg4 {[%clk 0:00:15]}  Rxg5+ {[%clk 0:01:19]} 61. Kxg5 {[%clk 0:00:16]}  Kg7 {[%clk 0:01:20]} 62. Kf5 {[%clk 0:00:17]}  f6 {[%clk 0:01:20]} 63. Kf4 {[%clk 0:00:15]}  Kg6 {[%clk 0:01:20]} 64. Kf3 {[%clk 0:00:15]}  f5 {[%clk 0:01:21]} 65. Kf2 {[%clk 0:00:16]}  Kg5 {[%clk 0:01:21]} 66. Kf1 {[%clk 0:00:17]}  f4 {[%clk 0:01:22]} 0-1


[Site "https://www.chess.com"]

[Event "Titled Tuesday Blitz February 28 Early 2023"]
[White "Mikhailovsky, Vladimir"]
[Black "Svane, Rasmus"]
[WhiteFideId "34105414"]
[BlackFideId "4657101"]
[WhiteElo "2282"]
[BlackElo "2597"]
[Result "0-1"]
[Round "09"]
[TimeControl "180+2"]
[Date "2023.02.28"]
[WhiteClock "0:00:01"]
[BlackClock "0:00:54"]

1. d4 {[%clk 0:03:00]}  d5 {[%clk 0:02:59]} 2. c4 {[%clk 0:03:00]}  e6 {[%clk 0:03:00]} 3. Nc3 {[%clk 0:03:00]}  a6 {[%clk 0:02:59]} 4. cxd5 {[%clk 0:02:48]}  exd5 {[%clk 0:03:00]} 5. Bf4 {[%clk 0:02:47]}  Nf6 {[%clk 0:02:59]} 6. e3 {[%clk 0:02:47]}  Bd6 {[%clk 0:02:59]} 7. Bxd6 {[%clk 0:02:47]}  Qxd6 {[%clk 0:03:00]} 8. Bd3 {[%clk 0:02:48]}  O-O {[%clk 0:02:57]} 9. Nge2 {[%clk 0:02:49]}  Re8 {[%clk 0:02:48]} 10. O-O {[%clk 0:02:49]}  Bg4 {[%clk 0:02:48]} 11. Qc2 {[%clk 0:02:40]}  Bxe2 {[%clk 0:02:47]} 12. Nxe2 {[%clk 0:02:39]}  Nc6 {[%clk 0:02:39]} 13. a3 {[%clk 0:02:38]}  Ne7 {[%clk 0:02:39]} 14. Nf4 {[%clk 0:02:25]}  c6 {[%clk 0:02:39]} 15. b4 {[%clk 0:02:24]}  Nc8 {[%clk 0:02:29]} 16. Rab1 {[%clk 0:01:54]}  Qe7 {[%clk 0:02:22]} 17. a4 {[%clk 0:01:53]}  Nd6 {[%clk 0:02:23]} 18. b5 {[%clk 0:01:53]}  cxb5 {[%clk 0:02:24]} 19. axb5 {[%clk 0:01:54]}  g5 {[%clk 0:02:01]} 20. Ne2 {[%clk 0:01:41]}  a5 {[%clk 0:02:01]} 21. b6 {[%clk 0:01:33]}  a4 {[%clk 0:01:56]} 22. Qa2 {[%clk 0:01:15]}  Rec8 {[%clk 0:01:49]} 23. Rfc1 {[%clk 0:01:09]}  Rxc1+ {[%clk 0:01:45]} 24. Rxc1 {[%clk 0:01:10]}  Qd8 {[%clk 0:01:42]} 25. Rc7 {[%clk 0:00:59]}  Nfe8 {[%clk 0:01:27]} 26. Rc5 {[%clk 0:00:58]}  Qxb6 {[%clk 0:01:24]} 27. Rxd5 {[%clk 0:00:55]}  h6 {[%clk 0:01:25]} 28. h4 {[%clk 0:00:55]}  Qb3 {[%clk 0:01:22]} 29. Qxb3 {[%clk 0:00:40]}  axb3 {[%clk 0:01:23]} 30. hxg5 {[%clk 0:00:41]}  b2 {[%clk 0:01:16]} 31. Bb1 {[%clk 0:00:37]}  Ra1 {[%clk 0:01:13]} 32. Nc3 {[%clk 0:00:37]}  b5 {[%clk 0:01:13]} 33. Kh2 {[%clk 0:00:05]}  b4 {[%clk 0:01:09]} 34. Nd1 {[%clk 0:00:05]}  Rxb1 {[%clk 0:01:08]} 35. Nxb2 {[%clk 0:00:06]}  Rxb2 {[%clk 0:01:09]} 36. f3 {[%clk 0:00:03]}  hxg5 {[%clk 0:01:05]} 37. Rxg5+ {[%clk 0:00:02]}  Kf8 {[%clk 0:01:05]} 38. Rc5 {[%clk 0:00:02]}  Rd2 {[%clk 0:00:55]} 39. Rc6 {[%clk 0:00:01]}  b3 {[%clk 0:00:53]} 40. Rb6 {[%clk 0:00:01]}  b2 {[%clk 0:00:54]} 0-1


[Site "https://www.chess.com"]

[Event "Titled Tuesday Blitz February 28 Early 2023"]
[White "Rustemov, Alexander"]
[Black "Al-Tarboush, Ward"]
[WhiteFideId "4119002"]
[BlackFideId "7601450"]
[WhiteElo "2890"]
[BlackElo "2267"]
[Result "1-0"]
[Round "09"]
[TimeControl "180+2"]
[Date "2023.02.28"]
[WhiteClock "0:00:11"]
[BlackClock "0:00:06"]

1. d4 {[%clk 0:03:00]}  d5 {[%clk 0:02:59]} 2. c4 {[%clk 0:03:00]}  c6 {[%clk 0:02:59]} 3. Nc3 {[%clk 0:03:00]}  Nf6 {[%clk 0:02:59]} 4. e3 {[%clk 0:03:01]}  e6 {[%clk 0:02:59]} 5. Nf3 {[%clk 0:03:01]}  Nbd7 {[%clk 0:03:00]} 6. Qc2 {[%clk 0:03:01]}  Bd6 {[%clk 0:02:59]} 7. b3 {[%clk 0:03:01]}  O-O {[%clk 0:02:58]} 8. Be2 {[%clk 0:03:02]}  b6 {[%clk 0:02:55]} 9. O-O {[%clk 0:03:01]}  Bb7 {[%clk 0:02:55]} 10. Bb2 {[%clk 0:03:02]}  Qe7 {[%clk 0:02:54]} 11. Rad1 {[%clk 0:03:01]}  Rfe8 {[%clk 0:02:53]} 12. Rfe1 {[%clk 0:03:01]}  Rad8 {[%clk 0:02:52]} 13. g3 {[%clk 0:03:01]}  c5 {[%clk 0:02:52]} 14. cxd5 {[%clk 0:03:01]}  exd5 {[%clk 0:02:42]} 15. dxc5 {[%clk 0:02:57]}  Nxc5 {[%clk 0:02:43]} 16. Nd4 {[%clk 0:02:53]}  Qd7 {[%clk 0:02:37]} 17. Bf3 {[%clk 0:02:52]}  Nce4 {[%clk 0:02:30]} 18. Qd3 {[%clk 0:02:36]}  h5 {[%clk 0:02:22]} 19. Bg2 {[%clk 0:02:23]}  h4 {[%clk 0:02:16]} 20. Qf1 {[%clk 0:02:17]}  Bb4 {[%clk 0:02:03]} 21. Nxe4 {[%clk 0:02:08]}  dxe4 {[%clk 0:01:27]} 22. Nc2 {[%clk 0:02:06]}  Bd6 {[%clk 0:00:56]} 23. Ba3 {[%clk 0:01:52]}  Qe7 {[%clk 0:00:50]} 24. Rxd6 {[%clk 0:01:51]}  Rxd6 {[%clk 0:00:51]} 25. Nd4 {[%clk 0:01:50]}  Qd7 {[%clk 0:00:46]} 26. Bxd6 {[%clk 0:01:47]}  Qxd6 {[%clk 0:00:47]} 27. Qe2 {[%clk 0:01:25]}  Qc5 {[%clk 0:00:40]} 28. Qd2 {[%clk 0:01:20]}  Qg5 {[%clk 0:00:38]} 29. Ne2 {[%clk 0:01:12]}  Bc8 {[%clk 0:00:31]} 30. Nf4 {[%clk 0:01:12]}  Bg4 {[%clk 0:00:30]} 31. h3 {[%clk 0:01:08]}  Bf3 {[%clk 0:00:24]} 32. g4 {[%clk 0:01:08]}  Nxg4 {[%clk 0:00:10]} 33. hxg4 {[%clk 0:01:00]}  Qxg4 {[%clk 0:00:11]} 34. Kh2 {[%clk 0:00:59]}  Bxg2 {[%clk 0:00:10]} 35. Nxg2 {[%clk 0:00:59]}  h3 {[%clk 0:00:09]} 36. Nf4 {[%clk 0:00:57]}  g5 {[%clk 0:00:10]} 37. Rg1 {[%clk 0:00:52]}  Qf5 {[%clk 0:00:09]} 38. Nxh3 {[%clk 0:00:48]}  f6 {[%clk 0:00:08]} 39. Rd1 {[%clk 0:00:39]}  Re7 {[%clk 0:00:02]} 40. Qd5+ {[%clk 0:00:38]}  Qxd5 {[%clk 0:00:02]} 41. Rxd5 {[%clk 0:00:39]}  Rc7 {[%clk 0:00:02]} 42. Rd2 {[%clk 0:00:39]}  Kf7 {[%clk 0:00:02]} 43. Ng1 {[%clk 0:00:39]}  Ke6 {[%clk 0:00:02]} 44. Ne2 {[%clk 0:00:39]}  f5 {[%clk 0:00:03]} 45. Kg3 {[%clk 0:00:39]}  Ke5 {[%clk 0:00:03]} 46. a4 {[%clk 0:00:39]}  Rg7 {[%clk 0:00:03]} 47. Nc3 {[%clk 0:00:37]}  f4+ {[%clk 0:00:04]} 48. Kg4 {[%clk 0:00:37]}  fxe3 {[%clk 0:00:03]} 49. fxe3 {[%clk 0:00:37]}  Rc7 {[%clk 0:00:03]} 50. Nb5 {[%clk 0:00:30]}  Rf7 {[%clk 0:00:04]} 51. Kxg5 {[%clk 0:00:26]}  Rg7+ {[%clk 0:00:04]} 52. Kh4 {[%clk 0:00:25]}  Rf7 {[%clk 0:00:03]} 53. Nc3 {[%clk 0:00:24]}  Rf3 {[%clk 0:00:03]} 54. Re2 {[%clk 0:00:15]}  Kf5 {[%clk 0:00:04]} 55. Nb5 {[%clk 0:00:14]}  Rf1 {[%clk 0:00:04]} 56. Nxa7 {[%clk 0:00:13]}  Rb1 {[%clk 0:00:05]} 57. Nb5 {[%clk 0:00:11]}  Rg1 {[%clk 0:00:04]} 58. Nd4+ {[%clk 0:00:11]}  Ke5 {[%clk 0:00:04]} 59. Kh3 {[%clk 0:00:11]}  Rg8 {[%clk 0:00:04]} 60. Rg2 {[%clk 0:00:10]}  Rh8+ {[%clk 0:00:04]} 61. Kg3 {[%clk 0:00:10]}  Rc8 {[%clk 0:00:05]} 62. Kf2 {[%clk 0:00:10]}  Rc3 {[%clk 0:00:05]} 63. Rg5+ {[%clk 0:00:10]}  Kf6 {[%clk 0:00:05]} 64. Rb5 {[%clk 0:00:11]}  Rd3 {[%clk 0:00:02]} 65. Rxb6+ {[%clk 0:00:11]}  Ke5 {[%clk 0:00:03]} 66. Rb5+ {[%clk 0:00:11]}  Kf6 {[%clk 0:00:03]} 67. a5 {[%clk 0:00:12]}  Rc3 {[%clk 0:00:03]} 68. a6 {[%clk 0:00:12]}  Rc7 {[%clk 0:00:02]} 69. Ra5 {[%clk 0:00:11]}  Ra7 {[%clk 0:00:02]} 70. Nb5 {[%clk 0:00:10]}  Rf7 {[%clk 0:00:03]} 71. a7 {[%clk 0:00:10]}  Ke5+ {[%clk 0:00:04]} 72. Ke2 {[%clk 0:00:11]}  Rh7 {[%clk 0:00:04]} 73. a8=Q {[%clk 0:00:11]}  Rh2+ {[%clk 0:00:05]} 74. Kd1 {[%clk 0:00:11]}  Kf6 {[%clk 0:00:06]} 75. Ra6+ {[%clk 0:00:11]} 1-0


[Site "https://www.chess.com"]

[Event "Titled Tuesday Blitz February 28 Early 2023"]
[White "Zhigalko, Sergei"]
[Black "Wagner, Dennis"]
[WhiteFideId "13502956"]
[BlackFideId "24650684"]
[WhiteElo "2626"]
[BlackElo "2470"]
[Result "1-0"]
[Round "09"]
[TimeControl "180+2"]
[Date "2023.02.28"]
[WhiteClock "0:01:31"]
[BlackClock "0:01:04"]

1. e4 {[%clk 0:03:00]}  c5 {[%clk 0:02:59]} 2. Nf3 {[%clk 0:03:01]}  d6 {[%clk 0:02:59]} 3. d4 {[%clk 0:03:01]}  cxd4 {[%clk 0:03:00]} 4. Qxd4 {[%clk 0:03:02]}  Nf6 {[%clk 0:03:01]} 5. Nc3 {[%clk 0:03:02]}  Nc6 {[%clk 0:03:01]} 6. Bb5 {[%clk 0:03:02]}  Bd7 {[%clk 0:03:01]} 7. Bxc6 {[%clk 0:03:03]}  Bxc6 {[%clk 0:03:02]} 8. Bg5 {[%clk 0:03:03]}  e6 {[%clk 0:03:01]} 9. O-O-O {[%clk 0:03:03]}  Be7 {[%clk 0:03:01]} 10. Rhe1 {[%clk 0:03:04]}  O-O {[%clk 0:03:01]} 11. Kb1 {[%clk 0:03:04]}  b5 {[%clk 0:02:58]} 12. Bxf6 {[%clk 0:03:02]}  Bxf6 {[%clk 0:02:55]} 13. Qxd6 {[%clk 0:03:03]}  Qb6 {[%clk 0:02:50]} 14. Ne5 {[%clk 0:03:03]}  Bxe5 {[%clk 0:02:46]} 15. Qxe5 {[%clk 0:03:03]}  b4 {[%clk 0:02:37]} 16. Ne2 {[%clk 0:03:04]}  Qxf2 {[%clk 0:02:36]} 17. Nf4 {[%clk 0:03:04]}  Rfe8 {[%clk 0:02:13]} 18. Nh5 {[%clk 0:03:00]}  f6 {[%clk 0:02:08]} 19. Qc7 {[%clk 0:03:00]}  Qxg2 {[%clk 0:01:55]} 20. Rg1 {[%clk 0:02:59]}  Rad8 {[%clk 0:01:31]} 21. Qxd8 {[%clk 0:01:44]}  Qxg1 {[%clk 0:01:29]} 22. Nxf6+ {[%clk 0:01:44]}  Kf7 {[%clk 0:01:20]} 23. Nxe8 {[%clk 0:01:43]}  Qg4 {[%clk 0:01:07]} 24. Rf1+ {[%clk 0:01:35]}  Kg6 {[%clk 0:01:04]} 25. Nxg7 {[%clk 0:01:31]} 1-0


[Site "https://www.chess.com"]

[Event "Titled Tuesday Blitz February 28 Early 2023"]
[White "Rostomyan, Mikayel"]
[Black "Koelle, Tobias"]
[WhiteFideId "13313754"]
[BlackFideId "16207378"]
[WhiteElo "2009"]
[BlackElo "2497"]
[Result "0-1"]
[Round "09"]
[TimeControl "180+2"]
[Date "2023.02.28"]
[WhiteClock "0:00:22"]
[BlackClock "0:01:59"]

1. d4 {[%clk 0:02:56]}  g6 {[%clk 0:02:58]} 2. Nf3 {[%clk 0:02:55]}  Bg7 {[%clk 0:02:57]} 3. c4 {[%clk 0:02:53]}  c5 {[%clk 0:02:56]} 4. Nc3 {[%clk 0:02:45]}  cxd4 {[%clk 0:02:55]} 5. Nxd4 {[%clk 0:02:46]}  Nc6 {[%clk 0:02:54]} 6. e3 {[%clk 0:02:43]}  Nf6 {[%clk 0:02:53]} 7. Be2 {[%clk 0:02:39]}  O-O {[%clk 0:02:53]} 8. O-O {[%clk 0:02:38]}  Nxd4 {[%clk 0:02:54]} 9. exd4 {[%clk 0:02:37]}  d5 {[%clk 0:02:54]} 10. cxd5 {[%clk 0:02:27]}  Nxd5 {[%clk 0:02:55]} 11. Bf3 {[%clk 0:02:26]}  Be6 {[%clk 0:02:55]} 12. Re1 {[%clk 0:02:19]}  Rc8 {[%clk 0:02:37]} 13. Nxd5 {[%clk 0:01:58]}  Bxd5 {[%clk 0:02:38]} 14. Bxd5 {[%clk 0:01:57]}  Qxd5 {[%clk 0:02:39]} 15. Rxe7 {[%clk 0:01:58]}  Bf6 {[%clk 0:02:39]} 16. Re1 {[%clk 0:01:54]}  Qxd4 {[%clk 0:02:37]} 17. Qxd4 {[%clk 0:01:48]}  Bxd4 {[%clk 0:02:38]} 18. Be3 {[%clk 0:01:49]}  Bxb2 {[%clk 0:02:37]} 19. Rab1 {[%clk 0:01:48]}  Rc2 {[%clk 0:02:38]} 20. Bxa7 {[%clk 0:01:48]}  Ra8 {[%clk 0:02:38]} 21. Bb6 {[%clk 0:00:53]}  Rxa2 {[%clk 0:02:36]} 22. h4 {[%clk 0:00:47]}  h5 {[%clk 0:02:35]} 23. Rxb2 {[%clk 0:00:39]}  Rcxb2 {[%clk 0:02:23]} 24. Re8+ {[%clk 0:00:36]}  Kh7 {[%clk 0:02:18]} 25. Bd4 {[%clk 0:00:35]}  Rb1+ {[%clk 0:02:18]} 26. Kh2 {[%clk 0:00:35]}  g5 {[%clk 0:02:19]} 27. hxg5 {[%clk 0:00:33]}  Rd1 {[%clk 0:02:17]} 28. Be3 {[%clk 0:00:29]}  b5 {[%clk 0:02:13]} 29. Rb8 {[%clk 0:00:26]}  Rb2 {[%clk 0:02:12]} 30. Rb7 {[%clk 0:00:24]}  Kg7 {[%clk 0:02:08]} 31. Kg3 {[%clk 0:00:22]}  b4 {[%clk 0:02:07]} 32. Bf4 {[%clk 0:00:22]}  Rb3+ {[%clk 0:02:05]} 33. Kh4 {[%clk 0:00:22]}  Rh1+ {[%clk 0:01:59]} 0-1


[Site "https://www.chess.com"]